[Event "Titled Tuesday Blitz July 11 Early 2023"]
[White "Bashirli, Saadat"]
[Black "Demin, Vladimir"]
[WhiteFideId "13429990"]
[BlackFideId "4167457"]
[WhiteElo "2366"]
[BlackElo "2538"]
[Result "0-1"]
[Round "5"]
[TimeControl "180+2"]
[Date "2023.07.11"]
[WhiteClock "0:00:01"]
[BlackClock "0:00:15"]
[Board "114"]

1. e4 {[%clk 0:03:00]}  e5 {[%clk 0:02:59]} 2. Nf3 {[%clk 0:03:00]}  Nc6 {[%clk 0:03:00]} 3. Bc4 {[%clk 0:02:55]}  Bc5 {[%clk 0:02:59]} 4. c3 {[%clk 0:02:54]}  Nf6 {[%clk 0:02:58]} 5. d3 {[%clk 0:02:54]}  a6 {[%clk 0:02:57]} 6. Bb3 {[%clk 0:02:50]}  Ba7 {[%clk 0:02:55]} 7. O-O {[%clk 0:02:49]}  d6 {[%clk 0:02:54]} 8. h3 {[%clk 0:02:49]}  h6 {[%clk 0:02:42]} 9. Nbd2 {[%clk 0:02:48]}  O-O {[%clk 0:02:41]} 10. Re1 {[%clk 0:02:44]}  Re8 {[%clk 0:02:41]} 11. Nf1 {[%clk 0:02:39]}  Be6 {[%clk 0:02:40]} 12. Bc2 {[%clk 0:02:39]}  d5 {[%clk 0:02:40]} 13. exd5 {[%clk 0:02:34]}  Bxd5 {[%clk 0:02:37]} 14. Ng3 {[%clk 0:02:33]}  Qd7 {[%clk 0:02:31]} 15. Be3 {[%clk 0:02:31]}  Bxe3 {[%clk 0:02:25]} 16. fxe3 {[%clk 0:02:28]}  Rad8 {[%clk 0:02:01]} 17. e4 {[%clk 0:02:24]}  Be6 {[%clk 0:01:59]} 18. Qe2 {[%clk 0:02:22]}  Qd6 {[%clk 0:01:53]} 19. Rad1 {[%clk 0:02:17]}  Qc5+ {[%clk 0:01:51]} 20. Kh2 {[%clk 0:02:09]}  Bxa2 {[%clk 0:01:37]} 21. c4 {[%clk 0:01:39]}  b5 {[%clk 0:01:33]} 22. Ra1 {[%clk 0:01:34]}  Nb4 {[%clk 0:01:32]} 23. b3 {[%clk 0:01:29]}  a5 {[%clk 0:01:30]} 24. Nf5 {[%clk 0:01:24]}  a4 {[%clk 0:01:28]} 25. d4 {[%clk 0:01:07]}  exd4 {[%clk 0:01:26]} 26. Bd3 {[%clk 0:01:02]}  axb3 {[%clk 0:01:07]} 27. cxb5 {[%clk 0:00:57]}  b2 {[%clk 0:01:03]} 28. Rad1 {[%clk 0:00:46]}  Nxd3 {[%clk 0:00:53]} 29. Qxd3 {[%clk 0:00:45]}  Bc4 {[%clk 0:00:53]} 30. Qc2 {[%clk 0:00:38]}  Qxb5 {[%clk 0:00:45]} 31. N3xd4 {[%clk 0:00:35]}  Qe5+ {[%clk 0:00:38]} 32. Kh1 {[%clk 0:00:32]}  Be6 {[%clk 0:00:38]} 33. Qxb2 {[%clk 0:00:21]}  c5 {[%clk 0:00:32]} 34. Qb5 {[%clk 0:00:15]}  Bd7 {[%clk 0:00:31]} 35. Qa5 {[%clk 0:00:14]}  cxd4 {[%clk 0:00:29]} 36. Qxe5 {[%clk 0:00:14]}  Rxe5 {[%clk 0:00:29]} 37. Rxd4 {[%clk 0:00:14]}  Ra8 {[%clk 0:00:27]} 38. Ng3 {[%clk 0:00:12]}  Be6 {[%clk 0:00:26]} 39. Red1 {[%clk 0:00:12]}  Rea5 {[%clk 0:00:26]} 40. Rd8+ {[%clk 0:00:11]}  Rxd8 {[%clk 0:00:25]} 41. Rxd8+ {[%clk 0:00:12]}  Kh7 {[%clk 0:00:26]} 42. Kh2 {[%clk 0:00:11]}  Ra4 {[%clk 0:00:25]} 43. e5 {[%clk 0:00:10]}  Nd5 {[%clk 0:00:25]} 44. Rb8 {[%clk 0:00:09]}  Ra2 {[%clk 0:00:23]} 45. Nh5 {[%clk 0:00:05]}  Ne3 {[%clk 0:00:21]} 46. Nf4 {[%clk 0:00:04]}  g5 {[%clk 0:00:20]} 47. Nxe6 {[%clk 0:00:03]}  fxe6 {[%clk 0:00:20]} 48. Rb7+ {[%clk 0:00:04]}  Kg6 {[%clk 0:00:20]} 49. Re7 {[%clk 0:00:03]}  Kf5 {[%clk 0:00:20]} 50. Rf7+ {[%clk 0:00:03]}  Kxe5 {[%clk 0:00:20]} 51. Rh7 {[%clk 0:00:03]}  Rxg2+ {[%clk 0:00:17]} 52. Kh1 {[%clk 0:00:03]}  Re2 {[%clk 0:00:16]} 53. Rxh6 {[%clk 0:00:03]}  Nf5 {[%clk 0:00:16]} 54. Rg6 {[%clk 0:00:03]}  Kf4 {[%clk 0:00:16]} 55. h4 {[%clk 0:00:02]}  Kf3 {[%clk 0:00:15]} 56. Rxg5 {[%clk 0:00:02]}  Ng3+ {[%clk 0:00:15]} 57. Kg1 {[%clk 0:00:01]}  Rg2# {[%clk 0:00:15]} 0-1


[Site "https://www.chess.com"]

[Event "Titled Tuesday Blitz July 11 Early 2023"]
[White "Berezin, Viktor"]
[Black "Rodriguez Santiago, Jaime"]
[WhiteFideId "14107872"]
[BlackFideId "3100898"]
[WhiteElo "2533"]
[BlackElo "2359"]
[Result "0-1"]
[Round "5"]
[TimeControl "180+2"]
[Date "2023.07.11"]
[WhiteClock "0:00:18"]
[BlackClock "0:01:45"]
[Board "115"]

1. d4 {[%clk 0:02:56]}  Nf6 {[%clk 0:02:56]} 2. c4 {[%clk 0:02:55]}  e6 {[%clk 0:02:55]} 3. Nf3 {[%clk 0:02:54]}  d5 {[%clk 0:02:55]} 4. g3 {[%clk 0:02:54]}  dxc4 {[%clk 0:02:55]} 5. Qa4+ {[%clk 0:02:52]}  Nbd7 {[%clk 0:02:49]} 6. Bg2 {[%clk 0:02:50]}  c5 {[%clk 0:02:48]} 7. O-O {[%clk 0:02:48]}  a6 {[%clk 0:02:45]} 8. dxc5 {[%clk 0:02:47]}  Bxc5 {[%clk 0:02:42]} 9. Qxc4 {[%clk 0:02:43]}  b5 {[%clk 0:02:42]} 10. Qc2 {[%clk 0:02:42]}  Bb7 {[%clk 0:02:42]} 11. a3 {[%clk 0:02:35]}  Rc8 {[%clk 0:02:39]} 12. Nc3 {[%clk 0:02:35]}  O-O {[%clk 0:02:37]} 13. Bg5 {[%clk 0:02:30]}  h6 {[%clk 0:02:35]} 14. Bxf6 {[%clk 0:02:28]}  Nxf6 {[%clk 0:02:36]} 15. Rad1 {[%clk 0:02:29]}  Qe7 {[%clk 0:02:33]} 16. Ne5 {[%clk 0:02:25]}  Bxg2 {[%clk 0:02:31]} 17. Kxg2 {[%clk 0:02:26]}  Qb7+ {[%clk 0:02:21]} 18. Kg1 {[%clk 0:02:20]}  Rfd8 {[%clk 0:02:14]} 19. Rxd8+ {[%clk 0:02:17]}  Rxd8 {[%clk 0:02:14]} 20. Rd1 {[%clk 0:02:17]}  Rxd1+ {[%clk 0:02:04]} 21. Nxd1 {[%clk 0:02:15]}  Qc7 {[%clk 0:01:50]} 22. Qc3 {[%clk 0:00:39]}  Ne4 {[%clk 0:01:49]} 23. Qd3 {[%clk 0:00:27]}  Qxe5 {[%clk 0:01:49]} 24. b4 {[%clk 0:00:18]}  Bb6 {[%clk 0:01:45]} 0-1


[Site "https://www.chess.com"]

[Event "Titled Tuesday Blitz July 11 Early 2023"]
[White "Bilan, Danila"]
[Black "Dubreuil, Julien"]
[WhiteFideId "24161918"]
[BlackFideId "621285"]
[WhiteElo "2531"]
[BlackElo "2357"]
[Result "0-1"]
[Round "5"]
[TimeControl "180+2"]
[Date "2023.07.11"]
[WhiteClock "0:00:04"]
[BlackClock "0:00:23"]
[Board "117"]

1. d4 {[%clk 0:03:00]}  d5 {[%clk 0:02:53]} 2. Nf3 {[%clk 0:03:00]}  Nf6 {[%clk 0:02:53]} 3. c4 {[%clk 0:02:59]}  e6 {[%clk 0:02:53]} 4. Nc3 {[%clk 0:02:59]}  c5 {[%clk 0:02:53]} 5. cxd5 {[%clk 0:02:58]}  Nxd5 {[%clk 0:02:54]} 6. e4 {[%clk 0:02:59]}  Nxc3 {[%clk 0:02:55]} 7. bxc3 {[%clk 0:03:00]}  cxd4 {[%clk 0:02:55]} 8. cxd4 {[%clk 0:03:00]}  Bb4+ {[%clk 0:02:55]} 9. Bd2 {[%clk 0:03:01]}  Bxd2+ {[%clk 0:02:55]} 10. Qxd2 {[%clk 0:03:02]}  O-O {[%clk 0:02:56]} 11. Bc4 {[%clk 0:03:00]}  b6 {[%clk 0:02:56]} 12. O-O {[%clk 0:03:00]}  Nd7 {[%clk 0:02:56]} 13. Rad1 {[%clk 0:02:59]}  Bb7 {[%clk 0:02:56]} 14. Rfe1 {[%clk 0:02:59]}  Rc8 {[%clk 0:02:55]} 15. Bb3 {[%clk 0:02:55]}  h6 {[%clk 0:02:55]} 16. Qf4 {[%clk 0:02:23]}  Qc7 {[%clk 0:02:54]} 17. Qh4 {[%clk 0:02:08]}  Nf6 {[%clk 0:02:52]} 18. d5 {[%clk 0:01:58]}  exd5 {[%clk 0:02:48]} 19. e5 {[%clk 0:01:53]}  Ne4 {[%clk 0:02:48]} 20. Bxd5 {[%clk 0:01:43]}  Nc3 {[%clk 0:02:35]} 21. Bxb7 {[%clk 0:01:32]}  Qxb7 {[%clk 0:02:36]} 22. Rd2 {[%clk 0:01:21]}  b5 {[%clk 0:02:30]} 23. h3 {[%clk 0:01:15]}  a5 {[%clk 0:02:26]} 24. e6 {[%clk 0:01:13]}  fxe6 {[%clk 0:02:26]} 25. Rxe6 {[%clk 0:01:13]}  b4 {[%clk 0:01:46]} 26. Re7 {[%clk 0:01:05]}  Rc7 {[%clk 0:01:46]} 27. Rxc7 {[%clk 0:00:35]}  Qxc7 {[%clk 0:01:46]} 28. Qg4 {[%clk 0:00:34]}  Qf7 {[%clk 0:01:42]} 29. Rd7 {[%clk 0:00:32]}  Qf6 {[%clk 0:01:37]} 30. Kh2 {[%clk 0:00:24]}  Qf4+ {[%clk 0:01:33]} 31. Qxf4 {[%clk 0:00:22]}  Rxf4 {[%clk 0:01:34]} 32. Rd2 {[%clk 0:00:17]}  a4 {[%clk 0:01:31]} 33. Nd4 {[%clk 0:00:11]}  Ne4 {[%clk 0:01:16]} 34. Rb2 {[%clk 0:00:10]}  b3 {[%clk 0:01:06]} 35. axb3 {[%clk 0:00:08]}  Nxf2 {[%clk 0:01:06]} 36. Ne2 {[%clk 0:00:04]}  Re4 {[%clk 0:01:05]} 37. bxa4 {[%clk 0:00:04]}  Rxa4 {[%clk 0:01:04]} 38. Rb7 {[%clk 0:00:03]}  Ra2 {[%clk 0:01:02]} 39. Ng3 {[%clk 0:00:04]}  Ra1 {[%clk 0:01:01]} 40. Nf5 {[%clk 0:00:04]}  Rh1+ {[%clk 0:01:00]} 41. Kg3 {[%clk 0:00:04]}  Ne4+ {[%clk 0:01:00]} 42. Kf4 {[%clk 0:00:05]}  Ng5 {[%clk 0:00:56]} 43. Rxg7+ {[%clk 0:00:05]}  Kf8 {[%clk 0:00:57]} 44. Ra7 {[%clk 0:00:05]}  Rf1+ {[%clk 0:00:56]} 45. Kg4 {[%clk 0:00:05]}  Ne4 {[%clk 0:00:53]} 46. Nxh6 {[%clk 0:00:05]}  Nf6+ {[%clk 0:00:48]} 47. Kg3 {[%clk 0:00:05]}  Ne4+ {[%clk 0:00:49]} 48. Kh2 {[%clk 0:00:05]}  Rf2 {[%clk 0:00:43]} 49. Ng4 {[%clk 0:00:05]}  Re2 {[%clk 0:00:42]} 50. Ra6 {[%clk 0:00:05]}  Nd2 {[%clk 0:00:42]} 51. Rf6+ {[%clk 0:00:05]}  Kg7 {[%clk 0:00:42]} 52. Ra6 {[%clk 0:00:04]}  Nf1+ {[%clk 0:00:39]} 53. Kg1 {[%clk 0:00:04]}  Nd2 {[%clk 0:00:35]} 54. Ra1 {[%clk 0:00:02]}  Ne4 {[%clk 0:00:32]} 55. Rf1 {[%clk 0:00:01]}  Nd2 {[%clk 0:00:31]} 56. Rb1 {[%clk 0:00:02]}  Nxb1 {[%clk 0:00:30]} 57. Kh2 {[%clk 0:00:01]}  Nc3 {[%clk 0:00:30]} 58. Kg3 {[%clk 0:00:02]}  Ra2 {[%clk 0:00:28]} 59. Nh2 {[%clk 0:00:02]}  Ne4+ {[%clk 0:00:27]} 60. Kf3 {[%clk 0:00:03]}  Ng5+ {[%clk 0:00:26]} 61. Kg3 {[%clk 0:00:03]}  Kg6 {[%clk 0:00:24]} 62. Ng4 {[%clk 0:00:03]}  Ne4+ {[%clk 0:00:23]} 63. Kf4 {[%clk 0:00:03]}  Nf2 {[%clk 0:00:22]} 64. Kg3 {[%clk 0:00:03]}  Nxg4 {[%clk 0:00:22]} 65. hxg4 {[%clk 0:00:04]}  Kg5 {[%clk 0:00:22]} 66. Kh3 {[%clk 0:00:04]}  Ra3+ {[%clk 0:00:22]} 67. g3 {[%clk 0:00:05]}  Rb3 {[%clk 0:00:22]} 68. Kh2 {[%clk 0:00:04]}  Kxg4 {[%clk 0:00:23]} 0-1


[Site "https://www.chess.com"]

[Event "Titled Tuesday Blitz July 11 Early 2023"]
[White "Turzo, Attila"]
[Black "Lopez Del Alamo, Antonio"]
[WhiteFideId "704954"]
[BlackFideId "2227339"]
[WhiteElo "2520"]
[BlackElo "2330"]
[Result "1-0"]
[Round "5"]
[TimeControl "180+2"]
[Date "2023.07.11"]
[WhiteClock "0:00:24"]
[BlackClock "0:00:15"]
[Board "120"]

1. d4 {[%clk 0:02:55]}  Nf6 {[%clk 0:02:51]} 2. c4 {[%clk 0:02:55]}  g6 {[%clk 0:02:45]} 3. g3 {[%clk 0:02:53]}  Bg7 {[%clk 0:02:43]} 4. Bg2 {[%clk 0:02:53]}  O-O {[%clk 0:02:42]} 5. Nc3 {[%clk 0:02:52]}  d6 {[%clk 0:02:38]} 6. e4 {[%clk 0:02:41]}  e5 {[%clk 0:02:28]} 7. d5 {[%clk 0:02:35]}  a5 {[%clk 0:02:26]} 8. Nge2 {[%clk 0:02:32]}  Na6 {[%clk 0:02:24]} 9. O-O {[%clk 0:02:32]}  Nc5 {[%clk 0:02:20]} 10. b3 {[%clk 0:02:31]}  Ne8 {[%clk 0:02:16]} 11. Rb1 {[%clk 0:02:27]}  f5 {[%clk 0:02:15]} 12. f3 {[%clk 0:02:14]}  Nf6 {[%clk 0:02:12]} 13. a3 {[%clk 0:02:14]}  a4 {[%clk 0:02:04]} 14. b4 {[%clk 0:02:07]}  Nb3 {[%clk 0:02:03]} 15. Be3 {[%clk 0:02:07]}  fxe4 {[%clk 0:02:00]} 16. Nxe4 {[%clk 0:02:01]}  Nxe4 {[%clk 0:01:57]} 17. fxe4 {[%clk 0:02:01]}  Bg4 {[%clk 0:01:56]} 18. h3 {[%clk 0:01:55]}  Bxe2 {[%clk 0:01:53]} 19. Qxe2 {[%clk 0:01:56]}  Qd7 {[%clk 0:01:51]} 20. Rxf8+ {[%clk 0:01:48]}  Rxf8 {[%clk 0:01:52]} 21. Rf1 {[%clk 0:01:48]}  Nd4 {[%clk 0:01:48]} 22. Rxf8+ {[%clk 0:01:46]}  Bxf8 {[%clk 0:01:48]} 23. Qf2 {[%clk 0:01:42]}  Bg7 {[%clk 0:01:44]} 24. Bf1 {[%clk 0:01:36]}  Qf7 {[%clk 0:01:40]} 25. Qxf7+ {[%clk 0:01:32]}  Kxf7 {[%clk 0:01:41]} 26. Bd3 {[%clk 0:01:30]}  Bf6 {[%clk 0:00:57]} 27. Kf2 {[%clk 0:01:25]}  Be7 {[%clk 0:00:55]} 28. Ke1 {[%clk 0:01:14]}  g5 {[%clk 0:00:50]} 29. Kd2 {[%clk 0:01:11]}  h5 {[%clk 0:00:46]} 30. g4 {[%clk 0:01:01]}  h4 {[%clk 0:00:42]} 31. Bc2 {[%clk 0:00:55]}  b5 {[%clk 0:00:38]} 32. Bxd4 {[%clk 0:00:51]}  exd4 {[%clk 0:00:37]} 33. cxb5 {[%clk 0:00:49]}  d3 {[%clk 0:00:32]} 34. Bxa4 {[%clk 0:00:37]}  Bf6 {[%clk 0:00:32]} 35. Bd1 {[%clk 0:00:37]}  Bd4 {[%clk 0:00:26]} 36. Kxd3 {[%clk 0:00:35]}  Bb2 {[%clk 0:00:25]} 37. a4 {[%clk 0:00:35]}  Ba3 {[%clk 0:00:25]} 38. Kc3 {[%clk 0:00:30]}  Kf6 {[%clk 0:00:24]} 39. a5 {[%clk 0:00:30]}  Ke5 {[%clk 0:00:22]} 40. b6 {[%clk 0:00:28]}  cxb6 {[%clk 0:00:15]} 41. axb6 {[%clk 0:00:24]} 1-0


[Site "https://www.chess.com"]

[Event "Titled Tuesday Blitz July 11 Early 2023"]
[White "Vifleemskaia, Svetlana"]
[Black "Chor, Kevin"]
[WhiteFideId "4129490"]
[BlackFideId "2090740"]
[WhiteElo "2320"]
[BlackElo "2518"]
[Result "0-1"]
[Round "5"]
[TimeControl "180+2"]
[Date "2023.07.11"]
[WhiteClock "0:00:00"]
[BlackClock "0:00:28"]
[Board "121"]

1. d4 {[%clk 0:03:00]}  Nf6 {[%clk 0:02:58]} 2. c4 {[%clk 0:03:00]}  g6 {[%clk 0:02:58]} 3. Nc3 {[%clk 0:03:00]}  Bg7 {[%clk 0:02:58]} 4. e4 {[%clk 0:03:01]}  d6 {[%clk 0:02:58]} 5. Nge2 {[%clk 0:03:02]}  O-O {[%clk 0:02:58]} 6. Ng3 {[%clk 0:03:03]}  Nc6 {[%clk 0:02:54]} 7. d5 {[%clk 0:03:00]}  Nb8 {[%clk 0:02:46]} 8. Be2 {[%clk 0:03:01]}  e5 {[%clk 0:02:41]} 9. h4 {[%clk 0:03:00]}  h5 {[%clk 0:02:39]} 10. Bg5 {[%clk 0:02:59]}  Qe8 {[%clk 0:02:36]} 11. Qd2 {[%clk 0:02:44]}  Na6 {[%clk 0:02:31]} 12. a3 {[%clk 0:02:40]}  Nc5 {[%clk 0:02:30]} 13. b4 {[%clk 0:02:39]}  Nb3 {[%clk 0:02:30]} 14. Qb2 {[%clk 0:02:37]}  Nxa1 {[%clk 0:02:30]} 15. Qxa1 {[%clk 0:02:38]}  c6 {[%clk 0:02:28]} 16. O-O {[%clk 0:02:35]}  cxd5 {[%clk 0:02:20]} 17. cxd5 {[%clk 0:02:36]}  Bg4 {[%clk 0:02:10]} 18. Bd3 {[%clk 0:02:09]}  Nh7 {[%clk 0:02:07]} 19. Be3 {[%clk 0:02:07]}  Qe7 {[%clk 0:02:03]} 20. f3 {[%clk 0:01:51]}  Bd7 {[%clk 0:02:02]} 21. Bf2 {[%clk 0:01:46]}  Bf6 {[%clk 0:02:00]} 22. Qe1 {[%clk 0:01:44]}  Bxh4 {[%clk 0:01:48]} 23. Kh1 {[%clk 0:01:21]}  Bg5 {[%clk 0:01:37]} 24. Nge2 {[%clk 0:01:07]}  h4 {[%clk 0:01:24]} 25. Kh2 {[%clk 0:01:01]}  Nf6 {[%clk 0:01:19]} 26. Rh1 {[%clk 0:00:59]}  Nh5 {[%clk 0:01:12]} 27. Kg1 {[%clk 0:00:57]}  h3 {[%clk 0:01:10]} 28. g4 {[%clk 0:00:48]}  Nf4 {[%clk 0:01:07]} 29. Nxf4 {[%clk 0:00:47]}  Bxf4 {[%clk 0:01:06]} 30. Rxh3 {[%clk 0:00:39]}  Kg7 {[%clk 0:01:03]} 31. Ne2 {[%clk 0:00:30]}  Bg5 {[%clk 0:00:59]} 32. Kg2 {[%clk 0:00:27]}  Rh8 {[%clk 0:00:58]} 33. Rxh8 {[%clk 0:00:23]}  Rxh8 {[%clk 0:00:59]} 34. Bxa7 {[%clk 0:00:21]}  Bh4 {[%clk 0:00:44]} 35. Bf2 {[%clk 0:00:18]}  Qg5 {[%clk 0:00:43]} 36. b5 {[%clk 0:00:13]}  Bxf2 {[%clk 0:00:29]} 37. Qxf2 {[%clk 0:00:14]}  Qd2 {[%clk 0:00:29]} 38. Bb1 {[%clk 0:00:03]}  Bxb5 {[%clk 0:00:28]} 39. Ng3 {[%clk 0:00:00]}  Rh2+ {[%clk 0:00:28]} 0-1


[Site "https://www.chess.com"]

[Event "Titled Tuesday Blitz July 11 Early 2023"]
[White "only_strong_moves"]
[Black "Balint, Vilmos"]
[BlackFideId "718050"]
[WhiteElo "2514"]
[BlackElo "2275"]
[Result "1-0"]
[Round "5"]
[TimeControl "180+2"]
[Date "2023.07.11"]
[WhiteClock "0:02:08"]
[BlackClock "0:01:48"]
[Board "125"]

1. d4 {[%clk 0:03:00]}  Nf6 {[%clk 0:02:40]} 2. Nc3 {[%clk 0:02:59]}  e6 {[%clk 0:02:40]} 3. Bf4 {[%clk 0:02:57]}  d5 {[%clk 0:02:40]} 4. e3 {[%clk 0:02:57]}  c5 {[%clk 0:02:39]} 5. Nb5 {[%clk 0:02:56]}  Na6 {[%clk 0:02:39]} 6. Nf3 {[%clk 0:02:55]}  Nh5 {[%clk 0:02:38]} 7. Bg5 {[%clk 0:02:52]}  Qa5+ {[%clk 0:02:31]} 8. Nd2 {[%clk 0:02:47]}  Nf6 {[%clk 0:02:21]} 9. c3 {[%clk 0:02:46]}  Be7 {[%clk 0:02:20]} 10. dxc5 {[%clk 0:02:44]}  Nxc5 {[%clk 0:02:19]} 11. b4 {[%clk 0:02:43]}  Qb6 {[%clk 0:02:09]} 12. bxc5 {[%clk 0:02:42]}  Qxc5 {[%clk 0:02:10]} 13. Nb3 {[%clk 0:02:39]}  Qb6 {[%clk 0:02:07]} 14. Bd3 {[%clk 0:02:29]}  Bd7 {[%clk 0:02:07]} 15. N5d4 {[%clk 0:02:26]}  Rc8 {[%clk 0:02:05]} 16. O-O {[%clk 0:02:25]}  Rxc3 {[%clk 0:02:04]} 17. Qd2 {[%clk 0:02:17]}  Rc8 {[%clk 0:02:01]} 18. Rab1 {[%clk 0:02:11]}  O-O {[%clk 0:01:59]} 19. Na5 {[%clk 0:02:08]}  Qc6 {[%clk 0:01:48]} 1-0


[Site "https://www.chess.com"]

[Event "Titled Tuesday Blitz July 11 Early 2023"]
[White "Tsyhanchuk, Stanislav"]
[Black "WindWhistler11"]
[WhiteFideId "13505130"]
[WhiteElo "2273"]
[BlackElo "2513"]
[Result "0-1"]
[Round "5"]
[TimeControl "180+2"]
[Date "2023.07.11"]
[WhiteClock "0:00:12"]
[BlackClock "0:00:12"]
[Board "126"]

1. e4 {[%clk 0:03:00]}  e6 {[%clk 0:02:58]} 2. Nf3 {[%clk 0:03:01]}  d5 {[%clk 0:02:58]} 3. exd5 {[%clk 0:02:56]}  exd5 {[%clk 0:02:58]} 4. d4 {[%clk 0:02:55]}  Nc6 {[%clk 0:02:57]} 5. Bd3 {[%clk 0:02:54]}  Bd6 {[%clk 0:02:56]} 6. O-O {[%clk 0:02:54]}  Nge7 {[%clk 0:02:57]} 7. c3 {[%clk 0:02:51]}  Bg4 {[%clk 0:02:55]} 8. Bg5 {[%clk 0:02:44]}  f6 {[%clk 0:02:55]} 9. Bh4 {[%clk 0:02:41]}  Qd7 {[%clk 0:02:50]} 10. Nbd2 {[%clk 0:02:40]}  g5 {[%clk 0:02:39]} 11. Bg3 {[%clk 0:02:40]}  h5 {[%clk 0:02:39]} 12. b4 {[%clk 0:02:37]}  h4 {[%clk 0:02:30]} 13. Bxd6 {[%clk 0:02:37]}  cxd6 {[%clk 0:02:31]} 14. b5 {[%clk 0:02:36]}  Nd8 {[%clk 0:02:27]} 15. h3 {[%clk 0:02:34]}  Bf5 {[%clk 0:02:17]} 16. Bxf5 {[%clk 0:02:30]}  Qxf5 {[%clk 0:02:17]} 17. Nh2 {[%clk 0:02:25]}  Ne6 {[%clk 0:02:05]} 18. Ng4 {[%clk 0:02:23]}  Kf7 {[%clk 0:01:52]} 19. Re1 {[%clk 0:02:11]}  Rae8 {[%clk 0:01:44]} 20. Ne3 {[%clk 0:01:42]}  Qd3 {[%clk 0:01:36]} 21. Qc2 {[%clk 0:01:41]}  Qxc2 {[%clk 0:01:29]} 22. Nxc2 {[%clk 0:01:42]}  Nf4 {[%clk 0:01:24]} 23. c4 {[%clk 0:01:36]}  Rc8 {[%clk 0:01:13]} 24. Ne3 {[%clk 0:01:24]}  Rhd8 {[%clk 0:01:12]} 25. g3 {[%clk 0:01:10]}  hxg3 {[%clk 0:01:08]} 26. fxg3 {[%clk 0:01:11]}  Nd3 {[%clk 0:01:00]} 27. Rf1 {[%clk 0:01:11]}  dxc4 {[%clk 0:00:32]} 28. Ndxc4 {[%clk 0:01:00]}  d5 {[%clk 0:00:27]} 29. Nd2 {[%clk 0:00:59]}  Kg6 {[%clk 0:00:22]} 30. Ng4 {[%clk 0:00:51]}  Rd6 {[%clk 0:00:17]} 31. Rf3 {[%clk 0:00:47]}  Nb4 {[%clk 0:00:12]} 32. Re1 {[%clk 0:00:46]}  Ng8 {[%clk 0:00:11]} 33. Nb3 {[%clk 0:00:41]}  Nc2 {[%clk 0:00:10]} 34. Re2 {[%clk 0:00:40]}  Na3 {[%clk 0:00:10]} 35. Nc5 {[%clk 0:00:28]}  Nxb5 {[%clk 0:00:09]} 36. Ne6 {[%clk 0:00:19]}  Re8 {[%clk 0:00:01]} 37. Nf4+ {[%clk 0:00:11]}  Kf7 {[%clk 0:00:02]} 38. Rxe8 {[%clk 0:00:10]}  Kxe8 {[%clk 0:00:03]} 39. Nh5 {[%clk 0:00:10]}  Kf7 {[%clk 0:00:03]} 40. Ne5+ {[%clk 0:00:04]}  Ke6 {[%clk 0:00:03]} 41. Ng4 {[%clk 0:00:03]}  Nxd4 {[%clk 0:00:04]} 42. Re3+ {[%clk 0:00:03]}  Kd7 {[%clk 0:00:04]} 43. Rd3 {[%clk 0:00:02]}  Nc6 {[%clk 0:00:04]} 44. Kf2 {[%clk 0:00:02]}  d4 {[%clk 0:00:04]} 45. Rf3 {[%clk 0:00:02]}  Ne5 {[%clk 0:00:05]} 46. Nxe5+ {[%clk 0:00:01]}  fxe5 {[%clk 0:00:05]} 47. Rf7+ {[%clk 0:00:02]}  Ne7 {[%clk 0:00:06]} 48. Nf6+ {[%clk 0:00:02]}  Ke6 {[%clk 0:00:07]} 49. Rf8 {[%clk 0:00:01]}  Ng6 {[%clk 0:00:07]} 50. Nh7 {[%clk 0:00:02]}  Nxf8 {[%clk 0:00:07]} 51. Nxf8+ {[%clk 0:00:03]}  Kf7 {[%clk 0:00:08]} 52. Nh7 {[%clk 0:00:03]}  Rg6 {[%clk 0:00:08]} 53. Nxg5+ {[%clk 0:00:04]}  Rxg5 {[%clk 0:00:08]} 54. h4 {[%clk 0:00:05]}  Rg6 {[%clk 0:00:08]} 55. Kf3 {[%clk 0:00:06]}  d3 {[%clk 0:00:07]} 56. Ke4 {[%clk 0:00:07]}  Rd6 {[%clk 0:00:08]} 57. Ke3 {[%clk 0:00:08]}  d2 {[%clk 0:00:08]} 58. Ke2 {[%clk 0:00:08]}  d1=Q+ {[%clk 0:00:09]} 59. Ke3 {[%clk 0:00:09]}  Qd2+ {[%clk 0:00:09]} 60. Ke4 {[%clk 0:00:10]}  Qd3+ {[%clk 0:00:09]} 61. Kxe5 {[%clk 0:00:10]}  Rd5+ {[%clk 0:00:10]} 62. Kf4 {[%clk 0:00:11]}  Qf5+ {[%clk 0:00:09]} 63. Ke3 {[%clk 0:00:10]}  Rd3+ {[%clk 0:00:10]} 64. Ke2 {[%clk 0:00:11]}  Qf3+ {[%clk 0:00:11]} 65. Ke1 {[%clk 0:00:12]}  Rd1# {[%clk 0:00:12]} 0-1


[Site "https://www.chess.com"]

[Event "Titled Tuesday Blitz July 11 Early 2023"]
[White "La Villa Rivas, Marlon Javier"]
[Black "Moskvin, Anatoly"]
[WhiteFideId "3519546"]
[BlackFideId "24199990"]
[WhiteElo "2240"]
[BlackElo "2512"]
[Result "0-1"]
[Round "5"]
[TimeControl "180+2"]
[Date "2023.07.11"]
[WhiteClock "0:01:36"]
[BlackClock "0:01:34"]
[Board "127"]

1. e4 {[%clk 0:03:00]}  e5 {[%clk 0:02:59]} 2. Nf3 {[%clk 0:02:59]}  Nc6 {[%clk 0:03:00]} 3. Bb5 {[%clk 0:02:58]}  Nge7 {[%clk 0:03:00]} 4. Nc3 {[%clk 0:02:56]}  a6 {[%clk 0:03:00]} 5. Ba4 {[%clk 0:02:55]}  d6 {[%clk 0:03:00]} 6. d4 {[%clk 0:02:55]}  b5 {[%clk 0:02:52]} 7. Bb3 {[%clk 0:02:53]}  Nxd4 {[%clk 0:02:52]} 8. Nxd4 {[%clk 0:02:42]}  exd4 {[%clk 0:02:53]} 9. Nd5 {[%clk 0:02:41]}  c5 {[%clk 0:02:49]} 10. c4 {[%clk 0:02:37]}  Nxd5 {[%clk 0:02:36]} 11. exd5 {[%clk 0:02:35]}  Qe7+ {[%clk 0:02:28]} 12. Kf1 {[%clk 0:02:34]}  g6 {[%clk 0:02:20]} 13. Bf4 {[%clk 0:02:31]}  Bg7 {[%clk 0:02:19]} 14. Qd2 {[%clk 0:02:29]}  O-O {[%clk 0:02:08]} 15. Re1 {[%clk 0:02:27]}  Qc7 {[%clk 0:02:01]} 16. h4 {[%clk 0:02:24]}  h5 {[%clk 0:02:01]} 17. Bh6 {[%clk 0:02:03]}  Bf5 {[%clk 0:01:54]} 18. f3 {[%clk 0:02:00]}  Rfe8 {[%clk 0:01:52]} 19. Rxe8+ {[%clk 0:01:52]}  Rxe8 {[%clk 0:01:53]} 20. g4 {[%clk 0:01:53]}  hxg4 {[%clk 0:01:53]} 21. h5 {[%clk 0:01:53]}  Bxh6 {[%clk 0:01:34]} 22. Qxh6 {[%clk 0:01:52]}  Qe7 {[%clk 0:01:34]} 23. hxg6 {[%clk 0:01:36]}  Qe1+ {[%clk 0:01:34]} 24. Kg2 {[%clk 0:01:36]}  Re2# {[%clk 0:01:34]} 0-1


[Site "https://www.chess.com"]